[Event "Germany Countries-chT Youth 2022"]
[Site "Wiesbaden"]
[Date "2022.10.02"]
[Round "4"]
[White "Czaeczine, Paula"]
[Black "Guo, Philipp Ziming"]
[Result "0-1"]
[ECO "B90"]
[WhiteElo "1322"]
[BlackElo "1851"]
[Annotator "NA RC COMBH"]
[PlyCount "106"]
[EventDate "2022.09.28"]
[EventType "team-tourn"]
[EventRounds "7"]
[EventCountry "GER"]
[SourceTitle "playchess.com"]
[Source "ChessBase"]
[SourceQuality "1"]
[TimeControl "40/5400+30:1800+30"]

1. e4 {[%emt 0:00:03]} c5 {[%emt 0:00:09]} 2. Nf3 {[%emt 0:00:05]} d6 {[%emt 0:00:06]} 3. d4 {[%emt 0:00:04]} cxd4 {[%emt 0:00:08]} 4. Nxd4 {[%emt 0:00:06]} Nf6 {[%emt 0:00:12]} 5. Nc3 {[%emt 0:00:10]} a6 {[%emt 0:00:18]} 6. f3 {[%emt 0:00:17]} e5 {[%emt 0:00:24]} 7. Nb3 {[%emt 0:00:05]} Be7 {[%emt 0:00:14]} 8. Be3 {[%emt 0:00:21]} Be6 {[%emt 0:00:13]} 9. Qd2 {[%emt 0:00:18]} O-O {[%emt 0:00:21]} 10. O-O-O {[%emt 0:00:20]} Nbd7 {[%emt 0:00:10]} 11. g4 {[%emt 0:00:34]} b5 {[%emt 0:00:09]} 12. Rg1 {[%emt 0:00:17]} Nb6 {[%emt 0:01:21]} 13. g5 {[%emt 0:02:43]} Nh5 {[%emt 0:00:17]} 14. Be2 {[%emt 0:02:10]} Qc7 {[%emt 0:06:40]} 15. Kb1 {[%emt 0:10:47]} Rfc8 {[%emt 0:12:14]} 16. Bxb6 {[%emt 0:08:04]} Qxb6 {[%emt 0:00:08]} 17. Nd5 {[%emt 0:00:14]} Bxd5 {[%emt 0:00:45]} 18. exd5 {[%emt 0:01:48]} a5 {[%emt 0:05:11]} 19. Qd3 {[%emt 0:09:00]} (19. Nc1 $15) 19... Rab8 {[%emt 0:05:39]} 20. Nd2 {[%emt 0:08:55]} Nf4 {[%emt 0:01:49]} 21. Qe4 {[%emt 0:03:00]} a4 {[%emt 0:05:23]} 22. Bd3 {[%emt 0:04:30]} g6 {[%emt 0:00:58]} 23. Rde1 {[%emt 0:08:55]} Qc5 {[%emt 0:04:32]} 24. Qe3 {[%emt 0:07:12]} Qxe3 {[%emt 0:06:30]} 25. Rxe3 {[%emt 0:00:08]} Nxd5 {[%emt 0:00:08]} 26. Ree1 {[%emt 0:02:50]} Nf4 {[%emt 0:01:51]} 27. Ne4 {[%emt 0:05:57]} Kg7 {[%emt 0:02:37]} 28. h4 {[%emt 0:06:40]} d5 {[%emt 0:09:51]} 29. Nf2 {[%emt 0:03:54]} Bc5 {[%emt 0:01:00]} 30. Rgf1 {[%emt 0:01:31]} Bxf2 {[%emt 0:00:51]} 31. Rxf2 {[%emt 0:00:09]} f6 {[%emt 0:00:29]} 32. Rd2 {[%emt 0:03:25]} Kf7 {[%emt 0:01:50]} 33. c3 {[%emt 0:02:53]} Ke6 {[%emt 0:01:17]} 34. Bf1 {[%emt 0:01:33]} f5 {[%emt 0:02:27]} 35. Rd4 {[%emt 0:01:23]} Kd6 {[%emt 0:00:15]} 36. Rb4 {[%emt 0:01:13]} Rc5 {[%emt 0:01:41]} 37. Rd1 {[%emt 0:01:09]} Kc6 {[%emt 0:01:43]} 38. Rc1 {[%emt 0:02:38]} Re8 {[%emt 0:04:14]} 39. b3 {[%emt 0:01:53]} axb3 {[%emt 0:00:51]} 40. axb3 {[%emt 0:00:12]} e4 {[%emt 0:01:29]} 41. fxe4 {[%emt 0:32:19]} fxe4 {[%emt 0:33:34]} 42. Kc2 {[%emt 0:00:00]} Ne6 {[%emt 0:00:00]} 43. Kd2 {[%emt 0:00:00]} Rf8 {[%emt 0:00:00]} 44. Be2 {[%emt 0:00:00]} Rf4 {[%emt 0:00:00]} 45. Rh1 {[%emt 0:00:00]} Rf2 {[%emt 0:00:00]} 46. Rf1 {[%emt 0:00:00] [#]} Rxe2+ $1 {[%emt 0:00:00]} 47. Kxe2 {[%emt 0:00:00]} Rxc3 {[%emt 0:00:00]} 48. Rf6 {[%emt 0:00:00]} Kc5 {[%emt 0:00:00]} 49. Rxe4 {[%emt 0:00:00]} dxe4 {[%emt 0:02:05]} 50. Rxe6 {[%emt 0:00:00]} Rxb3 {[%emt 0:01:06]} 51. Rxe4 {[%emt 0:00:00]} (51. Re7 $142) 51... Rb4 {[%emt 0:00:08]} 52. Re8 {[%emt 0:00:04]} Rxh4 {[%emt 0:00:07]} 53. Kd3 $19 {[%emt 0:00:50]} Kb4 {[%emt 0:01:02]} 0-1

[Event "Germany Countries-chT Youth 2022"]
[Site "Wiesbaden"]
[Date "2022.10.02"]
[Round "4"]
[White "Struebel, Katharina"]
[Black "Rafikova, Ailin"]
[Result "1-0"]
[ECO "B92"]
[WhiteElo "1273"]
[BlackElo "1287"]
[Annotator "NA RC COMBH"]
[PlyCount "181"]
[EventDate "2022.09.28"]
[EventType "team-tourn"]
[EventRounds "7"]
[EventCountry "GER"]
[SourceTitle "playchess.com"]
[Source "ChessBase"]
[SourceQuality "1"]
[TimeControl "40/5400+30:1800+30"]

1. e4 {[%emt 0:00:02]} c5 {[%emt 0:00:08]} 2. Nf3 {[%emt 0:00:11]} d6 {[%emt 0:00:08]} 3. d4 {[%emt 0:00:08]} cxd4 {[%emt 0:00:11]} 4. Nxd4 {[%emt 0:00:18]} Nf6 {[%emt 0:00:10]} 5. Nc3 {[%emt 0:00:21]} a6 {[%emt 0:00:16]} 6. Be2 {[%emt 0:00:39]} e5 {[%emt 0:00:58]} 7. Nb3 {[%emt 0:00:40]} Be7 {[%emt 0:01:09]} 8. O-O {[%emt 0:01:15]} O-O {[%emt 0:01:13]} 9. Be3 {[%emt 0:01:13]} Be6 {[%emt 0:00:49]} 10. Na4 {[%emt 0:05:02]} Nbd7 {[%emt 0:04:20]} 11. Qd3 {[%emt 0:03:16]} Rc8 {[%emt 0:04:05]} 12. Rad1 {[%emt 0:08:20]} Bc4 {[%emt 0:04:17]} 13. Qd2 {[%emt 0:02:17]} Nxe4 {[%emt 0:02:47]} 14. Qe1 {[%emt 0:01:19]} Bxe2 {[%emt 0:01:17]} 15. Qxe2 {[%emt 0:00:46]} b5 {[%emt 0:02:21]} 16. Nb6 {[%emt 0:03:42]} Nxb6 {[%emt 0:02:41]} 17. Bxb6 {[%emt 0:00:24]} Nc3 {[%emt 0:09:48]} 18. bxc3 {[%emt 0:08:17]} Qxb6 {[%emt 0:01:29]} 19. Rd3 {[%emt 0:04:24]} Rc7 {[%emt 0:01:36]} 20. Rg3 {[%emt 0:09:02]} Rfc8 {[%emt 0:01:31]} 21. Qg4 {[%emt 0:05:53]} Bf6 {[%emt 0:04:22]} 22. Qf5 {[%emt 0:04:27]} Rxc3 {[%emt 0:05:20]} 23. Kh1 {[%emt 0:02:14]} Rxg3 {[%emt 0:02:00]} 24. Qxc8+ {[%emt 0:00:16]} Qd8 {[%emt 0:01:04]} 25. Qxd8+ {[%emt 0:00:08]} Bxd8 {[%emt 0:00:05]} 26. fxg3 {[%emt 0:00:11]} h6 {[%emt 0:00:32]} 27. Rd1 {[%emt 0:00:19]} Bc7 {[%emt 0:00:24]} 28. Kg1 {[%emt 0:00:28]} Kf8 {[%emt 0:00:13]} 29. Kf2 {[%emt 0:00:25]} Ke7 {[%emt 0:00:24]} 30. Kf3 {[%emt 0:00:34]} Ke6 {[%emt 0:00:25]} 31. g4 {[%emt 0:00:36]} Bb8 {[%emt 0:00:27]} 32. Nd2 {[%emt 0:00:56]} Bc7 {[%emt 0:00:19]} 33. c4 {[%emt 0:01:00]} b4 {[%emt 0:01:10]} 34. Rb1 {[%emt 0:01:47]} a5 {[%emt 0:00:18]} 35. Ne4 {[%emt 0:00:44]} Bb6 {[%emt 0:00:53]} 36. Ng3 {[%emt 0:00:34]} g6 {[%emt 0:00:30]} 37. h4 {[%emt 0:00:50]} Bc7 {[%emt 0:01:43]} 38. h5 {[%emt 0:00:38]} Bb6 {[%emt 0:00:42]} 39. hxg6 {[%emt 0:00:25]} fxg6 {[%emt 0:00:13]} 40. Rh1 {[%emt 0:00:15]} a4 {[%emt 0:01:06]} 41. Ne2 {[%emt 0:31:05]} b3 {[%emt 0:30:18]} 42. axb3 {[%emt 0:00:14]} a3 {[%emt 0:00:35]} 43. Nc3 {[%emt 0:00:10]} Ba5 {[%emt 0:00:43]} 44. Na2 {[%emt 0:00:16]} Bd2 {[%emt 0:00:24]} 45. b4 {[%emt 0:00:19]} Kd7 {[%emt 0:00:11]} 46. Rd1 {[%emt 0:00:24]} Bg5 {[%emt 0:00:24]} 47. c5 {[%emt 0:00:16]} Be7 {[%emt 0:00:28]} 48. b5 {[%emt 0:00:41]} Kc7 {[%emt 0:00:15]} 49. cxd6+ {[%emt 0:00:18]} Bxd6 {[%emt 0:00:23]} 50. b6+ {[%emt 0:00:07]} Kc6 {[%emt 0:00:33]} 51. Ke4 {[%emt 0:01:34]} Bb8 {[%emt 0:00:46]} 52. Rc1+ {[%emt 0:00:40]} Kxb6 {[%emt 0:00:20]} 53. Rb1+ {[%emt 0:00:11]} Ka7 {[%emt 0:00:26]} 54. Rxb8 {[%emt 0:00:08]} Kxb8 {[%emt 0:00:09]} 55. Kxe5 {[%emt 0:00:04]} Kc7 {[%emt 0:00:45]} 56. Kf6 {[%emt 0:00:09]} g5 {[%emt 0:00:28]} 57. Kg6 {[%emt 0:00:07]} Kb6 {[%emt 0:00:10]} 58. Kxh6 {[%emt 0:00:05]} Kc5 {[%emt 0:00:07]} 59. Kxg5 {[%emt 0:00:07]} Kc4 {[%emt 0:00:07]} 60. Kf5 {[%emt 0:00:13]} Kb3 {[%emt 0:00:30]} 61. g5 {[%emt 0:00:06]} Kxa2 62. g6 Kb1 {[%emt 0:01:59]} 63. g7 {[%emt 0:00:36]} a2 {[%emt 0:00:11]} 64. g8=Q {[%emt 0:00:13]} a1=Q {[%emt 0:00:08]} 65. Qb3+ {[%emt 0:00:57]} Kc1 {[%emt 0:00:16]} 66. Qe3+ {[%emt 0:00:11]} Kc2 {[%emt 0:00:21]} 67. Qe4+ {[%emt 0:00:49]} Kb3 {[%emt 0:01:49]} 68. Qd5+ {[%emt 0:01:33]} Kb4 {[%emt 0:02:41]} 69. Qb7+ {[%emt 0:03:04]} Kc5 {[%emt 0:02:29]} 70. Qe7+ {[%emt 0:00:27]} Kd5 {[%emt 0:01:17]} 71. Qe6+ {[%emt 0:00:26]} Kc5 {[%emt 0:00:46]} 72. Qe5+ {[%emt 0:00:06]} Qxe5+ {[%emt 0:00:10]} 73. Kxe5 {[%emt 0:00:03]} Kc6 {[%emt 0:00:19]} 74. g4 {[%emt 0:00:19]} Kd7 {[%emt 0:00:07]} 75. Kf6 {[%emt 0:00:05]} Ke8 {[%emt 0:00:16]} 76. Kg7 {[%emt 0:00:05]} Ke7 {[%emt 0:00:15]} 77. g5 {[%emt 0:00:06]} Ke8 {[%emt 0:00:37]} 78. g6 {[%emt 0:00:05]} Ke7 {[%emt 0:00:04]} 79. Kh7 {[%emt 0:00:05]} Kf8 {[%emt 0:00:39]} 80. g7+ {[%emt 0:00:04]} Kf7 {[%emt 0:00:09]} 81. g8=Q+ {[%emt 0:00:07]} Kf6 {[%emt 0:00:12]} 82. Qe8 {[%emt 0:00:07]} Kf5 {[%emt 0:00:13]} 83. Kg7 {[%emt 0:00:12]} Kf4 {[%emt 0:00:16]} 84. Kf6 {[%emt 0:00:10]} Kg4 {[%emt 0:00:24]} 85. Ke5 {[%emt 0:00:06]} Kf3 {[%emt 0:00:32]} 86. Kd4 {[%emt 0:00:03]} Kf2 {[%emt 0:00:22]} 87. Kd3 {[%emt 0:00:06]} Kf1 {[%emt 0:00:12]} 88. Qe2+ Kg1 {[%emt 0:00:18]} 89. Ke3 {[%emt 0:00:11]} Kh1 {[%emt 0:00:25]} 90. Kf3 {[%emt 0:00:04]} Kg1 {[%emt 0:00:10]} 91. Qg2# 1-0

[Event "Germany Countries-chT Youth 2022"]
[Site "Wiesbaden"]
[Date "2022.10.02"]
[Round "4"]
[White "Chandrasekher, Ritu"]
[Black "Abram, Kristina-Maria"]
[Result "1-0"]
[ECO "B01"]
[WhiteElo "1262"]
[BlackElo "1158"]
[Annotator "NA RC COMBH"]
[PlyCount "49"]
[EventDate "2022.09.28"]
[EventType "team-tourn"]
[EventRounds "7"]
[EventCountry "GER"]
[SourceTitle "playchess.com"]
[Source "ChessBase"]
[SourceQuality "1"]
[TimeControl "40/5400+30:1800+30"]

1. e4 {[%emt 0:00:04]} d5 {[%emt 0:00:07]} 2. exd5 {[%emt 0:00:09]} Qxd5 {[%emt 0:00:05]} 3. Nc3 {[%emt 0:00:19]} Qa5 {[%emt 0:00:12]} 4. d4 {[%emt 0:00:20]} c6 {[%emt 0:00:16]} 5. Nf3 {[%emt 0:00:22]} Bf5 {[%emt 0:00:25]} 6. Bd3 {[%emt 0:00:30]} Bg6 {[%emt 0:00:26]} 7. O-O {[%emt 0:00:34]} Nf6 {[%emt 0:00:13]} 8. Ne5 {[%emt 0:00:57]} Nbd7 {[%emt 0:00:42]} 9. Bf4 {[%emt 0:03:59]} Nh5 {[%emt 0:02:21]} 10. Bd2 {[%emt 0:03:44]} Qc7 {[%emt 0:02:08]} 11. Re1 {[%emt 0:03:46]} e6 {[%emt 0:03:18]} 12. Qf3 {[%emt 0:05:03]} Bd6 {[%emt 0:02:58]} 13. Bxg6 {[%emt 0:11:34]} Nxe5 {[%emt 0:12:58]} 14. dxe5 {[%emt 0:02:33]} hxg6 {[%emt 0:01:20]} 15. exd6 {[%emt 0:00:36]} Qxd6 {[%emt 0:00:16]} 16. Rad1 {[%emt 0:01:37]} Qe7 {[%emt 0:01:03]} 17. g3 {[%emt 0:02:06]} O-O-O {[%emt 0:02:43]} 18. Be3 {[%emt 0:06:24]} Rxd1 {[%emt 0:01:21]} 19. Rxd1 {[%emt 0:01:52]} Qc7 {[%emt 0:03:16]} 20. Ne4 {[%emt 0:02:04]} f5 {[%emt 0:06:02]} 21. Nd6+ {[%emt 0:04:23]} Kb8 {[%emt 0:01:41]} 22. Nc4 {[%emt 0:02:18]} e5 {[%emt 0:01:07]} 23. Bc5 {[%emt 0:01:09]} e4 {[%emt 0:03:07]} 24. Qa3 {[%emt 0:01:17]} Kc8 {[%emt 0:03:07]} 25. Nd6+ {[%emt 0:01:16]} 1-0

[Event "Germany Countries-chT Youth 2022"]
[Site "Wiesbaden"]
[Date "2022.10.02"]
[Round "4"]
[White "Koepnick, Amanda"]
[Black "Kellner, Anton"]
[Result "1-0"]
[ECO "B23"]
[WhiteElo "1244"]
[BlackElo "1382"]
[Annotator "NA RC COMBH"]
[PlyCount "57"]
[EventDate "2022.09.28"]
[EventType "team-tourn"]
[EventRounds "7"]
[EventCountry "GER"]
[SourceTitle "playchess.com"]
[Source "ChessBase"]
[SourceQuality "1"]
[TimeControl "40/5400+30:1800+30"]

1. e4 {[%emt 0:00:02]} c5 {[%emt 0:00:03]} 2. Nc3 {[%emt 0:00:08]} d6 {[%emt 0:00:06]} 3. g3 {[%emt 0:00:22]} Nc6 {[%emt 0:00:13]} 4. Bg2 {[%emt 0:00:30]} e5 {[%emt 0:01:03]} 5. d3 {[%emt 0:01:59]} g6 {[%emt 0:00:31]} 6. Nh3 {[%emt 0:05:36]} Be6 {[%emt 0:01:34]} 7. f4 {[%emt 0:03:58]} Bg7 {[%emt 0:00:55]} 8. O-O {[%emt 0:04:35]} Nge7 {[%emt 0:00:28]} 9. Ng5 {[%emt 0:03:44]} Qc8 {[%emt 0:02:17]} 10. Nxe6 {[%emt 0:05:07]} Qxe6 {[%emt 0:00:09]} 11. Nb5 {[%emt 0:01:23]} Qd7 {[%emt 0:01:09]} 12. Qf3 {[%emt 0:03:13]} O-O-O {[%emt 0:03:18]} 13. f5 {[%emt 0:02:08]} Ng8 {[%emt 0:02:48]} 14. Bh3 {[%emt 0:02:56]} Nf6 {[%emt 0:03:02]} 15. Kg2 {[%emt 0:00:57]} g5 {[%emt 0:03:37]} 16. Bxg5 {[%emt 0:01:20]} a6 {[%emt 0:00:14]} 17. Nc3 {[%emt 0:00:38]} Nd4 {[%emt 0:00:32]} 18. Qf2 {[%emt 0:02:11]} Qc7 {[%emt 0:01:11]} 19. Bxf6 {[%emt 0:01:54]} Bxf6 {[%emt 0:01:07]} 20. Nd5 {[%emt 0:01:06]} Qa5 {[%emt 0:00:24]} 21. Nxf6 {[%emt 0:01:04]} Qa4 {[%emt 0:00:08]} 22. Rfc1 {[%emt 0:06:20]} Qb5 {[%emt 0:00:51]} 23. c3 {[%emt 0:04:03]} Nc6 {[%emt 0:00:09]} 24. Qd2 {[%emt 0:03:48]} Qa5 {[%emt 0:01:59]} 25. Nd5 {[%emt 0:01:52]} b5 {[%emt 0:01:20]} 26. a3 {[%emt 0:01:23]} Nd4 {[%emt 0:00:58]} 27. Qd1 {[%emt 0:01:26]} Nc6 {[%emt 0:00:43]} 28. b4 {[%emt 0:00:36]} Qa4 {[%emt 0:00:09]} 29. Nb6+ {[%emt 0:00:14]} 1-0

[Event "Germany Countries-chT Youth 2022"]
[Site "Wiesbaden"]
[Date "2022.10.03"]
[Round "5"]
[White "Krastev, Alexander"]
[Black "Boder, Jan"]
[Result "1/2-1/2"]
[ECO "C54"]
[WhiteElo "2431"]
[BlackElo "2341"]
[Annotator "RC"]
[PlyCount "61"]
[EventDate "2022.09.28"]
[EventType "team-tourn"]
[EventRounds "7"]
[EventCountry "GER"]
[SourceTitle "playchess.com"]
[Source "ChessBase"]
[SourceQuality "1"]
[TimeControl "40/5400+30:1800+30"]

1. e4 {[%emt 0:00:03]} e5 {[%emt 0:00:07]} 2. Nf3 {[%emt 0:00:18]} Nc6 {[%emt 0:00:06]} 3. Bc4 {[%emt 0:00:04]} Bc5 {[%emt 0:00:17]} 4. c3 {[%emt 0:00:04]} Nf6 {[%emt 0:00:08]} 5. d3 {[%emt 0:00:14]} a6 {[%emt 0:00:28]} 6. Bb3 {[%emt 0:01:01]} d6 {[%emt 0:00:26]} 7. O-O {[%emt 0:00:32]} O-O {[%emt 0:01:42]} 8. Re1 {[%emt 0:00:14]} h6 {[%emt 0:00:21]} 9. Nbd2 {[%emt 0:03:08]} Be6 {[%emt 0:03:15]} 10. Nf1 {[%emt 0:09:36]} Re8 {[%emt 0:02:42]} 11. Bxe6 {[%emt 0:03:21]} fxe6 {[%emt 0:00:13]} 12. d4 {[%emt 0:08:47]} Bb6 {[%emt 0:05:51]} 13. Ng3 {[%emt 0:01:48]} Qd7 {[%emt 0:07:05]} 14. h3 {[%emt 0:05:31]} Qf7 {[%emt 0:06:15]} 15. dxe5 {[%emt 0:17:29]} Nxe5 {[%emt 0:00:13]} 16. Nxe5 {[%emt 0:00:41]} dxe5 {[%emt 0:03:34]} 17. Be3 {[%emt 0:02:45]} Rad8 {[%emt 0:00:18]} 18. Qb3 {[%emt 0:03:44]} Rd6 {[%emt 0:02:07]} 19. Rad1 {[%emt 0:03:06]} Bxe3 {[%emt 0:02:37]} 20. Rxe3 {[%emt 0:00:03]} Red8 {[%emt 0:00:09]} 21. Rxd6 {[%emt 0:02:48]} cxd6 {[%emt 0:00:10]} 22. Re1 {[%emt 0:01:31]} Kh8 {[%emt 0:04:17]} 23. Qb6 {[%emt 0:00:52]} Qe7 {[%emt 0:00:58]} 24. c4 {[%emt 0:01:21]} Rc8 {[%emt 0:01:51]} 25. b3 {[%emt 0:03:47]} Qc7 {[%emt 0:03:43]} 26. Qe3 {[%emt 0:03:41]} Qc5 {[%emt 0:00:24]} 27. Qe2 {[%emt 0:04:10]} b5 {[%emt 0:01:42]} 28. cxb5 {[%emt 0:00:05]} axb5 {[%emt 0:01:44]} 29. Nh5 {[%emt 0:04:20]} Qc2 {[%emt 0:02:04]} 30. Nxf6 {[%emt 0:06:22]} Qxe2 {[%emt 0:00:12]} 31. Rxe2 {[%emt 0:00:04]} 1/2-1/2

[Event "Germany Countries-chT Youth 2022"]
[Site "Wiesbaden"]
[Date "2022.10.03"]
[Round "5"]
[White "Kolb, Tobias"]
[Black "Pubantz, Jan"]
[Result "1/2-1/2"]
[ECO "D12"]
[WhiteElo "2357"]
[BlackElo "2273"]
[Annotator "RC"]
[PlyCount "98"]
[EventDate "2022.09.28"]
[EventType "team-tourn"]
[EventRounds "7"]
[EventCountry "GER"]
[SourceTitle "playchess.com"]
[Source "ChessBase"]
[SourceQuality "1"]
[TimeControl "40/5400+30:1800+30"]

1. d4 {[%emt 0:00:02]} d5 {[%emt 0:00:05]} 2. c4 {[%emt 0:00:06]} c6 {[%emt 0:00:04]} 3. Nf3 {[%emt 0:00:03]} Nf6 {[%emt 0:00:10]} 4. e3 {[%emt 0:00:04]} Bf5 {[%emt 0:00:19]} 5. Nc3 {[%emt 0:00:04]} e6 {[%emt 0:00:18]} 6. Nh4 {[%emt 0:00:04]} Be4 {[%emt 0:00:03]} 7. f3 {[%emt 0:00:03]} Bg6 {[%emt 0:00:04]} 8. Bd2 {[%emt 0:00:18]} Be7 {[%emt 0:00:23]} 9. Nxg6 {[%emt 0:01:37]} hxg6 {[%emt 0:00:03]} 10. Qb3 {[%emt 0:00:12]} Qc7 {[%emt 0:00:59]} 11. cxd5 {[%emt 0:05:43]} Nxd5 {[%emt 0:02:59]} 12. O-O-O {[%emt 0:06:04]} Nxc3 {[%emt 0:01:21]} 13. Bxc3 {[%emt 0:02:41]} a5 {[%emt 0:00:23]} 14. e4 {[%emt 0:29:04]} a4 {[%emt 0:02:46]} 15. Qc2 {[%emt 0:02:01]} a3 {[%emt 0:02:42]} 16. b3 {[%emt 0:01:43]} Rxh2 {[%emt 0:17:21]} 17. Rxh2 {[%emt 0:02:35]} Qxh2 {[%emt 0:00:09]} 18. d5 {[%emt 0:01:07]} exd5 {[%emt 0:04:05]} 19. exd5 {[%emt 0:04:24]} cxd5 {[%emt 0:10:31]} 20. Bxg7 {[%emt 0:03:58]} Nc6 {[%emt 0:02:54]} 21. Rxd5 {[%emt 0:02:45]} Qg1 {[%emt 0:09:04]} 22. Rd1 {[%emt 0:00:56]} Qe3+ {[%emt 0:02:38]} 23. Kb1 {[%emt 0:01:15]} Rd8 {[%emt 0:02:41]} 24. Rxd8+ {[%emt 0:08:33]} Bxd8 {[%emt 0:01:48]} 25. Bb5 {[%emt 0:02:57]} Qe1+ {[%emt 0:12:18]} 26. Qc1 {[%emt 0:00:03]} Qxc1+ {[%emt 0:00:13]} 27. Kxc1 {[%emt 0:00:02]} Bg5+ {[%emt 0:01:45]} 28. Kc2 {[%emt 0:20:08]} f6 {[%emt 0:03:54]} 29. f4 {[%emt 0:00:40]} Bh4 {[%emt 0:04:52]} 30. g3 {[%emt 0:00:05]} Bxg3 {[%emt 0:06:06]} 31. Bxf6 {[%emt 0:00:02]} Bxf4 {[%emt 0:00:44]} 32. Kd3 {[%emt 0:01:02]} Kf7 {[%emt 0:01:12]} 33. Bc3 {[%emt 0:00:17]} Bd6 {[%emt 0:02:34]} 34. Ke4 {[%emt 0:00:53]} Nb4 {[%emt 0:03:33]} 35. Bxb4 {[%emt 0:00:04]} Bxb4 {[%emt 0:00:02]} 36. Bd7 {[%emt 0:01:51]} Kf6 {[%emt 0:02:03]} 37. Bc8 {[%emt 0:00:16]} b6 {[%emt 0:00:26]} 38. Bd7 {[%emt 0:00:34]} Ke7 {[%emt 0:02:31]} 39. Bg4 {[%emt 0:00:25]} Kd6 {[%emt 0:01:08]} 40. Be2 {[%emt 0:00:14]} Kc5 {[%emt 0:01:16]} 41. Bg4 {[%emt 0:30:03]} Bd2 {[%emt 0:05:12]} 42. b4+ {[%emt 0:00:00]} Kxb4 {[%emt 0:03:59]} 43. Be6 {[%emt 0:00:00]} Kc3 {[%emt 0:01:12]} 44. Kf3 {[%emt 0:00:00]} b5 {[%emt 0:01:44]} 45. Kg4 {[%emt 0:00:00]} b4 {[%emt 0:00:07]} 46. Bg8 {[%emt 0:00:00]} g5 {[%emt 0:01:27]} 47. Bf7 {[%emt 0:00:00]} Kd4 {[%emt 0:00:04]} 48. Bg8 {[%emt 0:00:00]} Bf4 {[%emt 0:00:09]} 49. Bf7 {[%emt 0:00:00]} Ke3 {[%emt 0:00:09]} 1/2-1/2

[Event "Germany Countries-chT Youth 2022"]
[Site "Wiesbaden"]
[Date "2022.10.03"]
[Round "5"]
[White "Stelmaszyk, Nico"]
[Black "Lutsko, Artem"]
[Result "1/2-1/2"]
[ECO "B22"]
[WhiteElo "2355"]
[BlackElo "2431"]
[Annotator "RC"]
[PlyCount "58"]
[EventDate "2022.09.28"]
[EventType "team-tourn"]
[EventRounds "7"]
[EventCountry "GER"]
[SourceTitle "playchess.com"]
[Source "ChessBase"]
[SourceQuality "1"]
[TimeControl "40/5400+30:1800+30"]

1. e4 {[%emt 0:00:02]} c5 {[%emt 0:00:02]} 2. c3 {[%emt 0:00:06]} Nf6 {[%emt 0:00:04]} 3. e5 {[%emt 0:00:05]} Nd5 {[%emt 0:00:03]} 4. Bc4 {[%emt 0:00:05]} e6 {[%emt 0:01:17]} 5. Nf3 {[%emt 0:00:04]} d6 {[%emt 0:00:04]} 6. d4 {[%emt 0:00:05]} cxd4 {[%emt 0:00:02]} 7. cxd4 {[%emt 0:00:05]} Be7 {[%emt 0:00:04]} 8. O-O {[%emt 0:00:06]} O-O {[%emt 0:00:02]} 9. Qe2 {[%emt 0:00:06]} Bd7 {[%emt 0:00:16]} 10. Rd1 {[%emt 0:07:01]} Bc6 {[%emt 0:00:32]} 11. Bxd5 {[%emt 0:00:50]} Bxd5 {[%emt 0:12:08]} 12. Nc3 {[%emt 0:00:06]} Bc6 {[%emt 0:12:28]} 13. d5 {[%emt 0:06:19]} exd5 {[%emt 0:00:14]} 14. Nxd5 {[%emt 0:13:07]} Nd7 {[%emt 0:19:59]} 15. Bf4 {[%emt 0:03:03]} dxe5 {[%emt 0:00:42]} 16. Nxe5 {[%emt 0:00:23]} Nxe5 {[%emt 0:00:07]} 17. Qxe5 {[%emt 0:00:48]} Bxd5 {[%emt 0:00:03]} 18. Rxd5 {[%emt 0:00:11]} Qe8 {[%emt 0:00:02]} 19. Qc7 {[%emt 0:02:11]} Bf6 {[%emt 0:00:26]} 20. Qxb7 {[%emt 0:05:42]} Qe4 {[%emt 0:01:12]} 21. g3 {[%emt 0:08:28]} Bxb2 {[%emt 0:00:02]} 22. Rad1 {[%emt 0:00:11]} Rad8 {[%emt 0:00:03]} 23. Qb3 {[%emt 0:00:38]} Rxd5 {[%emt 0:11:36]} 24. Qxd5 {[%emt 0:00:13]} Qa4 {[%emt 0:01:36]} 25. Qb3 {[%emt 0:02:39]} Qxb3 {[%emt 0:00:07]} 26. axb3 {[%emt 0:00:03]} Ra8 {[%emt 0:01:28]} 27. Rd7 {[%emt 0:00:18]} f6 {[%emt 0:02:47]} 28. Be3 {[%emt 0:00:49]} a5 {[%emt 0:00:33]} 29. Kf1 {[%emt 0:02:45]} a4 {[%emt 0:01:09]} 1/2-1/2

[Event "Germany Countries-chT Youth 2022"]
[Site "Wiesbaden"]
[Date "2022.10.03"]
[Round "5"]
[White "Huber, Benedikt"]
[Black "Kieselbach, Jannik"]
[Result "1-0"]
[ECO "B90"]
[WhiteElo "2299"]
[BlackElo "1848"]
[Annotator "RC"]
[PlyCount "81"]
[EventDate "2022.09.28"]
[EventType "team-tourn"]
[EventRounds "7"]
[EventCountry "GER"]
[SourceTitle "playchess.com"]
[Source "ChessBase"]
[SourceQuality "1"]
[TimeControl "40/5400+30:1800+30"]

1. e4 {[%emt 0:00:04]} c5 {[%emt 0:00:08]} 2. Nf3 {[%emt 0:00:08]} d6 {[%emt 0:00:07]} 3. d4 {[%emt 0:00:06]} cxd4 {[%emt 0:00:08]} 4. Nxd4 {[%emt 0:00:06]} Nf6 {[%emt 0:00:07]} 5. Nc3 {[%emt 0:00:07]} a6 {[%emt 0:00:07]} 6. Nb3 {[%emt 0:00:15]} e6 {[%emt 0:02:21]} 7. g4 {[%emt 0:00:10]} Be7 {[%emt 0:01:00]} 8. g5 {[%emt 0:01:24]} Nfd7 {[%emt 0:00:32]} 9. Bf4 {[%emt 0:00:09]} Ne5 {[%emt 0:03:50]} 10. h4 {[%emt 0:20:33]} Nbc6 {[%emt 0:14:27]} 11. a4 {[%emt 0:06:15]} h6 {[%emt 0:09:51]} 12. gxh6 {[%emt 0:04:10]} g6 {[%emt 0:00:08]} 13. Be2 {[%emt 0:02:52]} Bxh4 {[%emt 0:01:09]} 14. Qd2 {[%emt 0:01:25]} g5 {[%emt 0:04:52]} 15. Be3 {[%emt 0:00:52]} f6 {[%emt 0:33:09]} 16. O-O-O {[%emt 0:05:31]} Nf7 {[%emt 0:03:00]} 17. Bh5 {[%emt 0:10:52]} Ke7 {[%emt 0:09:25]} 18. Qe2 {[%emt 0:05:01]} Qc7 {[%emt 0:02:50]} 19. Bxf7 {[%emt 0:12:07]} Kxf7 {[%emt 0:00:09]} 20. Qh5+ {[%emt 0:00:04]} Kf8 {[%emt 0:01:03]} 21. Rxd6 {[%emt 0:00:09]} Qf7 {[%emt 0:01:47]} 22. Qd1 {[%emt 0:01:45]} Rxh6 {[%emt 0:01:23]} 23. f4 {[%emt 0:09:53]} gxf4 {[%emt 0:02:42]} 24. Bxf4 {[%emt 0:01:09]} Bg5 {[%emt 0:00:40]} 25. Bxg5 {[%emt 0:00:09]} Rxh1 {[%emt 0:00:08]} 26. Qxh1 {[%emt 0:00:06]} fxg5 {[%emt 0:00:21]} 27. Qh8+ {[%emt 0:05:21]} Ke7 {[%emt 0:01:17]} 28. Rd1 {[%emt 0:00:08]} b6 {[%emt 0:01:27]} 29. Nd4 {[%emt 0:01:46]} Bb7 {[%emt 0:00:47]} 30. Nxc6+ {[%emt 0:00:09]} Bxc6 {[%emt 0:00:11]} 31. Qd4 {[%emt 0:00:02]} Qf4+ {[%emt 0:01:17]} 32. Kb1 {[%emt 0:00:06]} Rb8 {[%emt 0:02:53]} 33. Qg7+ {[%emt 0:00:20]} Qf7 {[%emt 0:00:08]} 34. Qxg5+ {[%emt 0:00:06]} Qf6 {[%emt 0:00:33]} 35. Qg3 {[%emt 0:00:55]} e5 {[%emt 0:00:54]} 36. Qd3 {[%emt 0:00:14]} b5 {[%emt 0:01:13]} 37. Rf1 {[%emt 0:00:37]} Qe6 {[%emt 0:00:55]} 38. Nd5+ {[%emt 0:00:43]} Bxd5 {[%emt 0:00:08]} 39. exd5 {[%emt 0:00:05]} Qd6 {[%emt 0:01:46]} 40. Qh7+ {[%emt 0:00:24]} Kd8 {[%emt 0:00:34]} 41. Rg1 {[%emt 0:30:08]} 1-0